[Event "1000GM MLK Day RR IM-Norm 2024"]
[Site "Sunnyvale"]
[Date "2024.01.16"]
[Round "4.4"]
[White "Tang, Dylan"]
[Black "Dominguez Aguilar, Guillermo"]
[Result "1/2-1/2"]
[ECO "B76"]
[WhiteElo "2206"]
[BlackElo "2319"]
[Annotator "TA"]
[PlyCount "49"]
[EventDate "2024.01.12"]
[EventType "tourn"]
[EventCountry "USA"]
[SourceTitle "playchess.com"]
[Source "ChessBase"]
[SourceQuality "1"]
[TimeControl "5400+30"]

{[%evp 29,49,37,77,66,76,52,87,55,63,27,43,20,90,76,52,59,62,0,0,0,0,0]} 1. e4 {[%emt 0:00:02]} c5 {[%emt 0:00:38]} 2. Nf3 {[%emt 0:00:32]} d6 {[%emt 0:00:22]} 3. d4 {[%emt 0:00:23]} cxd4 {[%emt 0:00:08]} 4. Nxd4 {[%emt 0:00:05]} Nf6 {[%emt 0:00:09]} 5. Nc3 {[%emt 0:00:04]} g6 {[%emt 0:00:28]} 6. Be3 {[%emt 0:00:51]} Bg7 {[%emt 0:00:15]} 7. f3 {[%emt 0:00:14]} Nc6 {[%emt 0:01:16]} 8. Qd2 {[%emt 0:00:17]} O-O {[%emt 0:00:34]} 9. O-O-O {[%emt 0:00:29]} d5 {[%emt 0:05:21]} 10. exd5 {[%emt 0:00:23]} Nxd5 {[%emt 0:00:06]} 11. Nxc6 {[%emt 0:00:14]} bxc6 {[%emt 0:00:06]} 12. Bd4 {[%emt 0:00:09]} e5 {[%emt 0:12:17]} 13. Bc5 {[%emt 0:00:06]} Be6 {[%emt 0:02:03]} 14. Ne4 {[%emt 0:00:13]} Re8 {[%emt 0:02:43]} 15. h4 {[%emt 0:02:33]} Rb8 {[%emt 0:18:14]} 16. Bc4 {[%emt 0:04:34] B76: Sicilian Dragon: Yugoslav Attack, 9 g4 and 9 0-0-0.} (16. Bxa7 Ra8 17. Bc5 Rxa2 $19) 16... Nf4 {[%emt 0:18:48]} 17. Bxe6 {[%emt 0:17:46]} Nxe6 {[%emt 0:03:07]} 18. Qxd8 {[%emt 0:00:51] White is better.} Rbxd8 {[%emt 0:00:51] [#]} 19. Be3 $146 {[%emt 0:01:34] White is more active.} ({Predecessor:} 19. Bxa7 Ra8 20. Rd7 f5 21. Ng5 Nf4 22. g4 h6 23. Nh3 fxg4 24. fxg4 Nd5 25. g5 {1-0 Hintze,E (2193)-Tokarev,E (1644) BI-2010-F-00001 2011}) 19... f5 {[%emt 0:01:55]} 20. Ng5 {[%emt 0:04:43] next Nxe6 is good for White.} (20. Nd6 $5 {[%cal Rd6e8]} Re7 21. c3 $11) 20... Nf4 {[%emt 0:13:35]} (20... Nc7 $11) 21. Rxd8 $16 {[%emt 0:05:51]} Rxd8 {[%emt 0:00:11]} 22. Bxf4 {[%emt 0:00:16]} exf4 {[%emt 0:00:01]} 23. Ne6 {[%emt 0:00:16] Inhibits Bd4.} ({White should play} 23. c3 $1 $14) 23... Re8 $11 {[%emt 0:00:03]} 24. Nxg7 {[%emt 0:00:26]} Kxg7 {[%emt 0:00:01]} 25. Kd2 {[%emt 0:00:41] Inhibits Re2+.   Weighted Error Value: White=0.22 (precise) /Black=0.27 (precise)} 1/2-1/2

[Event "1000GM MLK Day RR IM-Norm 2024"]
[Site "Sunnyvale"]
[Date "2024.01.16"]
[Round "4.5"]
[White "Guo, Ethan"]
[Black "Figueredo Losada, Leonel"]
[Result "1/2-1/2"]
[ECO "B48"]
[WhiteElo "2099"]
[BlackElo "2381"]
[Annotator "TA"]
[PlyCount "48"]
[EventDate "2024.01.12"]
[EventType "tourn"]
[EventCountry "USA"]
[SourceTitle "playchess.com"]
[Source "ChessBase"]
[SourceQuality "1"]
[TimeControl "5400+30"]

{[%evp 11,48,33,34,13,28,15,26,0,54,28,39,50,56,48,43,51,116,41,88,11,10,10,13,19,12,4,14,0,10,0,0,0,0,0,0,0,0,0,147]} 1. e4 {[%emt 0:03:15] Mikhalchishin,Adrian} c5 {[%emt 0:03:43]} 2. Nf3 {[%emt 0:00:05]} e6 {[%emt 0:00:10]} 3. d4 {[%emt 0:00:05]} cxd4 {[%emt 0:00:04]} 4. Nxd4 {[%emt 0:00:08]} Nc6 {[%emt 0:00:02]} 5. Nc3 {[%emt 0:00:10]} a6 {[%emt 0:00:07]} 6. Be3 {[%emt 0:00:19]} Qc7 {[%emt 0:00:07]} 7. Qf3 {[%emt 0:00:09] B48: Sicilian: Taimanov: 5 Nc3 Qc7 6 Be3 a6 without Be2.} Nf6 {[%emt 0:06:02][%cal Of8a3]} 8. O-O-O {[%emt 0:00:15]} d6 {[%emt 0:00:43]} 9. Be2 {[%emt 0:00:59] White has an edge.} Rb8 {[%emt 0:03:46]} (9... Nxd4 $1 $11 10. Rxd4 (10. Bxd4 e5 $11) 10... b5) 10. g4 {[%emt 0:00:57] [#]} b5 $146 {[%emt 0:00:40]} ({Predecessor:} 10... Ne5 11. Qg3 b5 12. g5 Nfd7 13. f4 b4 14. Na4 Nc4 15. Bxc4 Qxc4 16. b3 Qc7 {1-0 Balashov,Y (2445)-Tunik,G (2365) Wch Seniors 65 28th 2018 (11)}) 11. Nxc6 {[%emt 0:02:12]} Qxc6 {[%emt 0:00:04] [#]} 12. e5 $1 {[%emt 0:03:06][%mdl 64] Discovered Attack} Qxf3 {[%emt 0:03:44]} 13. Bxf3 {[%emt 0:00:09]} dxe5 {[%emt 0:00:09] [#]} ({Better is} 13... b4 $1 $14) 14. g5 {[%emt 0:01:11]} ({White should play} 14. Bc6+ $1 $16 Nd7 15. Rd3) 14... e4 {[%emt 0:01:33]} 15. Nxe4 {[%emt 0:01:10] White has more active pieces. The black rooks are badly placed.} ({Don't play} 15. Bxe4 $6 Nxe4 16. Nxe4 Bb7 $11) (15. Bg2 $16 Ng4 16. Bf4 (16. Nxe4 Nxe3 17. fxe3 Bb7 $15)) 15... Nxe4 $11 {[%emt 0:00:07] The position is equal.} 16. Bxe4 {[%emt 0:00:38] Bc6+ would be deadly.} Bb7 {[%emt 0:00:03] Wards off Bc6+. Black is weak on the dark squares} 17. Bxb7 $40 {[%emt 0:01:00][%mdl 128] White attacks.} Rxb7 {[%emt 0:00:03]} 18. Rd3 {[%emt 0:00:56]} Rd7 {[%emt 0:05:11]} 19. Rc3 {[%emt 0:02:31]} Be7 {[%emt 0:03:22]} 20. Rc6 {[%emt 0:03:09]} Rd6 {[%emt 0:00:05]} 21. Rc7 {[%emt 0:00:52]} Rd7 $1 {[%emt 0:02:25]} 22. Rc6 {[%emt 0:00:07]} Rd6 {[%emt 0:03:26]} 23. Rc7 {[%emt 0:00:06]} Rd7 $1 {[%emt 0:01:38]} 24. Rc6 {[%emt 0:00:45]} Rd8 {[%emt 1:05:16] Weighted Error Value: White=0.17 (very precise) /Black=0.17 (very precise)} (24... Rd6 $11 25. Rc8+ Rd8) 1/2-1/2

[Event "1000GM MLK Day RR IM-Norm 2024"]
[Site "Sunnyvale"]
[Date "2024.01.20"]
[Round "5.1"]
[White "Figueredo Losada, Leonel"]
[Black "Deng, Henry"]
[Result "0-1"]
[ECO "D14"]
[WhiteElo "2381"]
[BlackElo "2281"]
[Annotator "ChessBase"]
[PlyCount "107"]
[EventDate "2024.01.12"]
[EventType "tourn"]
[EventCountry "USA"]
[SourceTitle "playchess.com"]
[Source "ChessBase"]
[SourceQuality "1"]
[TimeControl "5400+30"]

1. d4 {[%emt 0:02:59]} d5 {[%emt 1:31:00]} 2. c4 {[%emt 0:00:06]} c6 {[%emt 0:00:00]} 3. Nc3 {[%emt 0:00:04]} Nf6 {[%emt 0:00:00]} 4. cxd5 {[%emt 0:00:04]} cxd5 {[%emt 0:00:00]} 5. Bf4 {[%emt 0:00:07]} Nc6 {[%emt 0:00:00]} 6. e3 {[%emt 0:00:04]} Bf5 {[%emt 0:00:00]} 7. Nf3 {[%emt 0:00:10]} e6 {[%emt 0:00:00]} 8. Be2 {[%emt 0:00:06]} Bd6 {[%emt 0:00:00]} 9. Ne5 {[%emt 0:00:06]} Bxe5 {[%emt 0:00:00]} 10. Bxe5 {[%emt 0:00:06]} O-O {[%emt 0:00:00]} 11. Bg3 {[%emt 0:00:08]} Qb6 {[%emt 0:00:00]} 12. Qd2 {[%emt 0:02:19]} Ne4 {[%emt 0:00:00]} 13. Nxe4 {[%emt 0:00:15]} Bxe4 {[%emt 0:00:00]} 14. O-O {[%emt 0:03:08]} Rac8 {[%emt 0:00:00]} 15. Rfc1 {[%emt 0:05:11]} Na5 {[%emt 0:00:00]} 16. b3 {[%emt 0:00:34]} Rc6 {[%emt 0:00:00]} 17. Rxc6 {[%emt 0:12:42]} Nxc6 {[%emt 0:00:00]} 18. Rc1 {[%emt 0:00:03]} h6 {[%emt 0:00:00]} 19. Rc5 {[%emt 0:01:02]} a6 {[%emt 0:00:00]} 20. Qc3 {[%emt 0:01:06]} Rc8 {[%emt 0:00:00]} 21. b4 {[%emt 0:01:28]} Ra8 {[%emt 0:00:00]} 22. a3 {[%emt 0:01:26]} Qd8 {[%emt 0:00:00]} 23. h3 {[%emt 0:05:55]} Qd7 {[%emt 0:00:00]} 24. a4 {[%emt 0:07:58]} Na7 {[%emt 0:00:00]} 25. b5 {[%emt 0:00:04]} axb5 {[%emt 0:00:00]} 26. Rc7 {[%emt 0:04:47]} Qe8 {[%emt 0:00:00]} 27. a5 {[%emt 0:09:45]} Rc8 {[%emt 0:00:00]} 28. Qc5 {[%emt 0:03:46]} Rxc7 {[%emt 0:00:00]} 29. Bxc7 {[%emt 0:00:01]} Qc6 {[%emt 0:00:00]} 30. Bb6 {[%emt 0:00:07]} Qxc5 {[%emt 0:00:00]} 31. dxc5 {[%emt 0:00:04]} b4 {[%emt 0:00:00]} 32. Bd1 {[%emt 0:18:12]} Nc6 {[%emt 0:00:00]} 33. Kf1 {[%emt 0:07:49]} Bd3+ {[%emt 0:00:00]} 34. Ke1 {[%emt 0:00:04]} Bb5 {[%emt 0:00:00]} 35. f4 {[%emt 0:00:56]} Kf8 {[%emt 0:00:00]} 36. g4 {[%emt 0:00:13]} Ke7 {[%emt 0:00:00]} 37. h4 {[%emt 0:00:06]} f6 {[%emt 0:00:48]} 38. h5 {[%emt 0:01:54]} e5 {[%emt 0:03:50]} 39. Kd2 {[%emt 0:01:16]} Kd7 {[%emt 0:03:29]} 40. Bb3 {[%emt 0:01:32]} Ne7 {[%emt 0:00:27]} 41. Bc2 {[%emt 0:04:36]} Bc4 {[%emt 0:02:36]} 42. Ba4+ {[%emt 0:00:43]} Nc6 {[%emt 0:02:10]} 43. fxe5 {[%emt 0:01:40]} fxe5 {[%emt 0:00:06]} 44. Ba7 {[%emt 0:01:58]} Kc8 {[%emt 0:01:05]} 45. Bb6 {[%emt 0:01:20]} d4 {[%emt 0:01:19]} 46. Bxc6 {[%emt 0:04:21]} bxc6 {[%emt 0:00:07]} 47. exd4 {[%emt 0:00:02]} exd4 {[%emt 0:00:23]} 48. a6 {[%emt 0:00:22]} Bxa6 {[%emt 0:00:06]} 49. Ba5 {[%emt 0:00:10]} b3 {[%emt 0:01:07]} 50. Bb4 {[%emt 0:01:43]} Kd7 {[%emt 0:00:08]} 51. Ba5 {[%emt 0:00:31]} Be2 {[%emt 0:00:10]} 52. Bb4 {[%emt 0:00:48]} Bxg4 {[%emt 0:00:08]} 53. Ba3 {[%emt 0:00:12]} Ke6 {[%emt 0:00:09]} 54. Ke1 {[%emt 0:01:21]} 0-1

[Event "1000GM MLK Day RR IM-Norm 2024"]
[Site "Sunnyvale"]
[Date "2024.01.20"]
[Round "5.2"]
[White "Dominguez Aguilar, Guillermo"]
[Black "Guo, Ethan"]
[Result "1/2-1/2"]
[ECO "B23"]
[WhiteElo "2319"]
[BlackElo "2099"]
[Annotator "RC"]
[PlyCount "57"]
[EventDate "2024.01.12"]
[EventType "tourn"]
[EventCountry "USA"]
[SourceTitle "playchess.com"]
[Source "ChessBase"]
[SourceQuality "1"]
[TimeControl "5400+30"]

1. e4 {[%emt 0:00:22]} c5 {[%emt 0:00:04]} 2. Nc3 {[%emt 1:31:08]} d6 {[%emt 0:00:08]} 3. f4 {[%emt 0:00:00]} g6 {[%emt 0:00:06]} 4. Nf3 {[%emt 0:00:00]} Bg7 {[%emt 0:00:06]} 5. Bb5+ {[%emt 0:00:00]} Bd7 {[%emt 0:00:14]} 6. O-O {[%emt 0:00:00]} Nc6 {[%emt 1:32:52]} 7. d3 {[%emt 0:00:00]} Nd4 8. Nxd4 {[%emt 0:00:00]} Bxd4+ {[%emt 0:01:00]} 9. Kh1 {[%emt 0:00:00]} Bxb5 {[%emt 0:00:00]} 10. Nxb5 {[%emt 0:00:00]} Bg7 {[%emt 0:00:00]} 11. Qf3 {[%emt 0:00:00]} Qd7 {[%emt 0:00:00]} 12. c4 {[%emt 0:00:00]} a6 {[%emt 0:00:00]} 13. Nc3 {[%emt 0:00:00]} e6 {[%emt 0:00:00]} 14. f5 {[%emt 0:00:00]} O-O-O {[%emt 0:00:00]} 15. Bg5 {[%emt 0:00:00]} f6 {[%emt 0:00:00]} 16. fxe6 {[%emt 0:00:00]} Qxe6 {[%emt 0:00:00]} 17. Be3 {[%emt 0:00:00]} Ne7 {[%emt 0:00:00]} 18. Rab1 {[%emt 0:00:00]} f5 {[%emt 0:00:00]} 19. Qh3 {[%emt 0:00:00]} h6 {[%emt 0:00:00]} 20. Nd5 {[%emt 0:00:00]} Nxd5 {[%emt 0:00:00]} 21. cxd5 {[%emt 0:00:00]} Qd7 {[%emt 0:00:00]} 22. exf5 {[%emt 0:00:00]} gxf5 {[%emt 0:00:00]} 23. b4 {[%emt 0:00:00]} f4 {[%emt 0:00:00]} 24. Qxd7+ {[%emt 0:00:00]} Rxd7 {[%emt 0:08:00]} 25. Bxf4 {[%emt 0:00:00]} Rf8 {[%emt 0:00:00]} 26. g3 {[%emt 0:00:00]} cxb4 {[%emt 0:01:00]} 27. Rxb4 {[%emt 0:00:00]} Rf5 {[%emt 0:00:00]} 28. Re1 {[%emt 0:00:00]} b5 {[%emt 0:00:00]} 29. a4 {[%emt 0:00:00]} 1/2-1/2

[Event "1000GM MLK Day RR IM-Norm 2024"]
[Site "Sunnyvale"]
[Date "2024.01.20"]
[Round "5.3"]
[White "Guo, Andrew"]
[Black "Tang, Dylan"]
[Result "1/2-1/2"]
[ECO "E11"]
[WhiteElo "2255"]
[BlackElo "2206"]
[Annotator "RC"]
[PlyCount "43"]
[EventDate "2024.01.12"]
[EventType "tourn"]
[EventCountry "USA"]
[SourceTitle "playchess.com"]
[Source "ChessBase"]
[SourceQuality "1"]
[TimeControl "5400+30"]

1. d4 {[%emt 0:00:05]} Nf6 {[%emt 0:00:41]} 2. c4 {[%emt 0:00:06]} e6 {[%emt 0:00:19]} 3. g3 {[%emt 0:00:08]} d5 {[%emt 0:00:07]} 4. Nf3 {[%emt 0:00:04]} Bb4+ {[%emt 0:00:07]} 5. Bd2 {[%emt 0:00:03]} Be7 {[%emt 0:01:44]} 6. Bg2 {[%emt 0:00:01]} O-O {[%emt 0:00:12]} 7. Qc2 {[%emt 0:00:04]} c6 {[%emt 0:00:09]} 8. O-O {[%emt 0:00:03]} Nbd7 {[%emt 0:00:05]} 9. Rd1 {[%emt 0:00:21]} a5 {[%emt 0:00:06]} 10. Bf4 {[%emt 0:00:06]} Nh5 {[%emt 0:00:04]} 11. Bc1 {[%emt 0:00:03]} Nhf6 {[%emt 0:00:14]} 12. Nbd2 {[%emt 0:01:00]} b6 {[%emt 0:00:11]} 13. e4 {[%emt 0:01:50]} Bb7 {[%emt 0:00:11]} 14. b3 {[%emt 0:00:56]} a4 {[%emt 0:04:19]} 15. Bb2 {[%emt 0:00:43]} Qc8 {[%emt 0:06:27]} 16. Rac1 {[%emt 0:15:31]} dxe4 {[%emt 0:12:13]} 17. Nxe4 {[%emt 0:00:05]} Nxe4 {[%emt 0:00:17]} 18. Qxe4 {[%emt 0:00:03]} c5 {[%emt 0:00:09]} 19. d5 {[%emt 0:20:38]} Bf6 {[%emt 0:03:41]} 20. Qb1 {[%emt 0:01:01]} exd5 {[%emt 0:02:27]} 21. cxd5 {[%emt 0:00:17]} Qb8 {[%emt 0:01:29]} 22. bxa4 {[%emt 0:58:22]} 1/2-1/2

[Event "1000GM MLK Day RR IM-Norm 2024"]
[Site "Sunnyvale"]
[Date "2024.01.20"]
[Round "5.4"]
[White "Bansal, Advay"]
[Black "Arenas, David"]
[Result "1/2-1/2"]
[ECO "C54"]
[WhiteElo "2253"]
[BlackElo "2406"]
[Annotator "RC"]
[PlyCount "98"]
[EventDate "2024.01.12"]
[EventType "tourn"]
[EventCountry "USA"]
[SourceTitle "playchess.com"]
[Source "ChessBase"]
[SourceQuality "1"]
[TimeControl "5400+30"]

1. e4 {[%emt 0:00:01]} e5 {[%emt 0:08:17]} 2. Nf3 {[%emt 0:00:15]} Nc6 {[%emt 0:00:08]} 3. Bc4 {[%emt 0:00:06]} Bc5 {[%emt 0:00:16]} 4. O-O {[%emt 0:00:20]} Nf6 {[%emt 0:00:13]} 5. d3 {[%emt 0:00:06]} d6 {[%emt 0:00:28]} 6. c3 {[%emt 0:00:17]} a5 {[%emt 0:00:14]} 7. Re1 {[%emt 0:01:14]} Ba7 {[%emt 0:01:01]} 8. Nbd2 {[%emt 0:01:04]} O-O {[%emt 0:00:15]} 9. h3 {[%emt 0:01:00]} Ne7 {[%emt 0:00:36]} 10. Bb3 {[%emt 0:05:26]} Ng6 {[%emt 0:00:42]} 11. d4 {[%emt 0:00:30]} exd4 {[%emt 0:02:05]} 12. cxd4 {[%emt 0:00:24]} d5 {[%emt 0:03:01]} 13. e5 {[%emt 0:00:33]} Nh5 {[%emt 0:00:07]} 14. Nf1 {[%emt 0:04:49]} Nhf4 {[%emt 0:00:13]} 15. Bxf4 {[%emt 0:00:39]} Nxf4 {[%emt 0:00:10]} 16. Qd2 {[%emt 0:00:03]} Ne6 {[%emt 0:09:01]} 17. Qxa5 {[%emt 0:00:15]} c5 {[%emt 0:00:09]} 18. Qxd8 {[%emt 0:02:05]} Rxd8 {[%emt 0:00:02]} 19. dxc5 {[%emt 0:02:24]} Nxc5 {[%emt 0:00:30]} 20. Bc2 {[%emt 0:13:32]} d4 {[%emt 0:01:08]} 21. Rad1 {[%emt 0:06:38]} d3 {[%emt 0:01:13]} 22. Ne3 {[%emt 0:01:10]} Bxh3 {[%emt 0:06:30]} 23. gxh3 {[%emt 0:16:29]} dxc2 {[%emt 0:00:16]} 24. Rxd8+ {[%emt 0:04:03]} Rxd8 {[%emt 0:00:04]} 25. Rc1 {[%emt 0:00:10]} g6 {[%emt 0:12:19]} 26. Rxc2 {[%emt 0:00:18]} h5 {[%emt 0:00:06]} 27. b4 {[%emt 0:13:44]} Ne6 {[%emt 0:00:22]} 28. Kf1 {[%emt 0:05:59]} Kf8 {[%emt 0:05:00]} 29. h4 {[%emt 0:05:06]} Rd3 {[%emt 0:09:06]} 30. Ne1 {[%emt 0:02:38]} Rd8 {[%emt 0:02:28]} 31. a4 {[%emt 0:00:55]} Ke7 {[%emt 0:07:17]} 32. a5 {[%emt 0:05:15]} Bb8 {[%emt 0:00:57]} 33. Nc4 {[%emt 0:02:04]} Nd4 {[%emt 0:02:02]} 34. Rd2 {[%emt 0:00:46]} Ba7 {[%emt 0:02:24]} 35. f4 {[%emt 0:01:42]} Rc8 {[%emt 0:08:21]} 36. Nd6 {[%emt 0:01:24]} Rc1 {[%emt 0:00:06]} 37. Nxb7 {[%emt 0:02:10]} Nf3 {[%emt 0:01:35]} 38. Re2 {[%emt 0:00:01]} Bd4 {[%emt 0:00:34]} 39. a6 {[%emt 0:01:31]} Rb1 {[%emt 0:05:36]} 40. Nc5 {[%emt 0:01:04]} Bxc5 {[%emt 0:00:03]} 41. bxc5 {[%emt 0:00:09]} Ra1 {[%emt 0:00:02]} 42. c6 {[%emt 0:02:20]} Nxh4 {[%emt 0:04:13]} 43. c7 {[%emt 0:00:24]} Kd7 {[%emt 0:00:14]} 44. Rc2 {[%emt 0:00:37]} Kc8 {[%emt 0:00:01]} 45. Rc6 {[%emt 0:00:44]} Nf3 {[%emt 0:00:51]} 46. a7 {[%emt 0:00:04]} Nxe1 {[%emt 0:02:25]} 47. a8=Q+ {[%emt 0:00:11]} Rxa8 {[%emt 0:00:02]} 48. Kxe1 {[%emt 0:00:12]} Ra7 {[%emt 0:00:16]} 49. e6 {[%emt 0:00:04]} fxe6 {[%emt 0:00:47]} 1/2-1/2